[Event "Teplice Open 2022"]
[Site "Teplice"]
[Date "2022.06.25"]
[Round "8.15"]
[White "Richter, Nils"]
[Black "Das, Arghyadip"]
[Result "1-0"]
[ECO "A43"]
[WhiteElo "2359"]
[BlackElo "2472"]
[Annotator "TA"]
[PlyCount "73"]
[EventDate "2022.06.18"]
[EventType "swiss"]
[EventCountry "CZE"]
[SourceTitle "playchess.com"]
[Source "ChessBase"]
[SourceQuality "1"]
[TimeControl "40/5400+30:1800+30"]

{[%evp 18,73,34,29,19,30,33,16,10,0,0,0,61,61,46,-80,-89,-71,-98,-94,0,0,0,0,56,34,79,87,76,66,168,179,208,199,198,182,210,217,229,210,261,265,722,463,577,563,29980,29983,29995,29981,4528,1085,1080,1077,1054,1046,966,916]} 1. d4 {[%emt 0:00:01]} c5 {[%emt 0:00:15]} 2. d5 {[%emt 0:00:38]} d6 {[%emt 0:00:26]} 3. e4 {[%emt 0:02:19]} g6 {[%emt 0:00:35]} 4. Nc3 {[%emt 0:02:13]} Bg7 {[%emt 0:00:08]} 5. Bb5+ {[%emt 0:00:48]} Bd7 {[%emt 0:01:47]} 6. a4 {[%emt 0:01:56]} Nf6 {[%emt 0:00:33]} 7. Nf3 {[%emt 0:02:23]} O-O {[%emt 0:02:50]} 8. h3 {[%emt 0:05:40]} Bxb5 {[%emt 0:00:37] is now debated instead of 8...Na6.} 9. axb5 {[%emt 0:00:14]} Nbd7 {[%emt 0:00:03]} 10. O-O {[%emt 0:02:23]} Ne8 {[%emt 0:00:05] A43: Schmid Benoni.} 11. Bg5 {[%emt 0:09:04]} Nc7 {[%emt 0:02:43]} 12. Qe2 {[%emt 0:01:25]} Nb6 {[%emt 0:09:07] The position is equal.} 13. Nh2 {[%emt 0:13:21][%cal Bf3h2,Bh2g4,Bg4h6][%mdl 32]} Qd7 {[%emt 0:09:22]} 14. Ng4 {[%emt 0:01:27]} f5 {[%emt 0:20:18]} ({Black should play} 14... h5 $11 15. Ne3 (15. Nh6+ Kh7 $17) 15... e6) 15. Nh6+ $14 {[%emt 0:10:49]} Kh8 {[%emt 0:02:34] [#]} 16. f4 $146 {[%emt 0:00:07]} (16. exf5 $14 {stays ahead.} gxf5 17. Rfe1 (17. Qxe7 Qxe7 18. Bxe7 Bxh6 $15)) ({Predecessor:} 16. exf5 gxf5 17. Rfe1 Ncxd5 18. Nxd5 Nxd5 19. Rad1 Nf6 20. Qxe7 Qxe7 21. Rxe7 Ne4 22. Bf4 Bxb2 {1-0 (75) Sedlak,N (2557)-Chatalbashev,B (2613) Cetinje 2010}) 16... e6 $17 {[%emt 0:01:53][%cal Re6d5]} 17. dxe6 {[%emt 0:11:06]} Nxe6 {[%emt 0:05:25]} (17... Qxe6 18. exf5 Qxe2 19. Nxe2 $11) 18. exf5 {[%emt 0:00:01]} Nd4 {[%emt 0:02:04]} (18... gxf5 $17 19. Qh5 d5) 19. Qd3 $11 {[%emt 0:03:17]} gxf5 {[%emt 0:07:08]} 20. Rfe1 {[%emt 0:00:09] Inhibits Qe6. Re7 is the strong threat.} Bf6 {[%emt 0:00:10] Inhibits Re7.} (20... Rae8 $11 21. Ne2 c4) 21. Kh1 $14 {[%emt 0:08:46]} Qg7 {[%emt 0:01:11]} 22. h4 {[%emt 0:02:01] White is more active. White leaves nothing to chance now.} Qd7 {[%emt 0:11:46]} 23. Ne2 {[%emt 0:03:42] Threatens to win with Nxd4.} (23. Rad1 $5 {[%cal Rc3e2]}) 23... Ne6 {[%emt 0:09:29]} (23... Nxb5 24. Ng3 $16) (23... Qxb5 $14 24. Nxd4 Qxd3 25. cxd3 (25. Bxf6+ $2 Rxf6 26. cxd3 cxd4 $19) 25... Bxd4) 24. Ng3 $1 $18 {[%emt 0:03:21]} ({Inferior is} 24. Nxf5 Bxb2 25. Rab1 Nxg5 26. hxg5 Qxf5 $11) ({Much less strong is} 24. Bxf6+ $6 Rxf6 25. Nxf5 c4 $14) 24... Ng7 {[%emt 0:00:11] [#]} ({Weaker is} 24... Bxb2 25. Rab1 Nxg5 26. hxg5 $16) 25. Re2 $1 {[%emt 0:03:00] aiming for Rae1.} c4 {[%emt 0:01:48] [#]} 26. Qf3 {[%emt 0:01:11]} Qxb5 {[%emt 0:03:31]} 27. Qxb7 {[%emt 0:01:06] Hoping for Bxf6.} Qd7 {[%emt 0:03:34]} 28. Qf3 {[%emt 0:01:35]} d5 {[%emt 0:01:02]} 29. Rae1 {[%emt 0:00:47]} Bxg5 $2 {[%emt 0:02:42]} (29... d4 30. Bxf6 Rxf6) 30. fxg5 {[%emt 0:01:14] Black must now prevent Nh5.} f4 {[%emt 0:01:06]} 31. Re7 {[%emt 0:02:29]} fxg3 {[%emt 0:00:05]} 32. Nf7+ {[%emt 0:00:14]} Kg8 {[%emt 0:00:38]} 33. Rxd7 {[%emt 0:00:42]} Nxd7 {[%emt 0:00:02]} 34. Qxd5 {[%emt 0:00:38]} (34. Nh6+ $142 Kh8 35. Qxd5) 34... Rxf7 {[%emt 0:00:30]} 35. Qxa8+ {[%emt 0:00:02]} Nf8 {[%emt 0:00:03]} 36. Qd5 {[%emt 0:00:43]} Nge6 {[%emt 0:00:14]} 37. Kg1 {[%emt 0:01:21] Weighted Error Value: White=0.26 (precise) /Black=0.52} 1-0

[Event "Teplice Open 2022"]
[Site "Teplice"]
[Date "2022.06.25"]
[Round "8.16"]
[White "Brejnik, Gustav"]
[Black "Hollan, Martin"]
[Result "0-1"]
[ECO "D74"]
[WhiteElo "2246"]
[BlackElo "2391"]
[Annotator "TA"]
[PlyCount "80"]
[EventDate "2022.06.18"]
[EventType "swiss"]
[EventCountry "CZE"]
[SourceTitle "playchess.com"]
[Source "ChessBase"]
[SourceQuality "1"]
[TimeControl "40/5400+30:1800+30"]

{[%evp 14,80,17,28,19,14,25,-5,2,-15,17,-22,-18,-15,-7,-10,0,-22,-21,-46,-24,-24,-22,-31,-9,-30,0,10,91,102,102,95,92,78,87,54,53,18,14,34,35,-8,25,36,128,25,32,36,56,56,56,55,52,0,0,-156,-32,-802,-802,-711,-681,-29989,-29990,-29990,-29991,-29992,-29993,-29993,-29993]} 1. d4 {[%emt 0:00:03]} Nf6 {[%emt 0:00:15]} 2. c4 {[%emt 0:00:14]} g6 {[%emt 0:00:15]} 3. Nf3 {[%emt 0:02:00]} Bg7 {[%emt 0:00:18]} 4. g3 {[%emt 0:00:13]} O-O {[%emt 0:00:18]} 5. Bg2 {[%emt 0:00:03]} d5 {[%emt 0:00:30]} 6. cxd5 {[%emt 0:00:25]} Nxd5 {[%emt 0:00:09]} 7. O-O {[%emt 0:00:11]} Nc6 {[%emt 0:01:05]} 8. Nc3 {[%emt 0:00:38]} e5 {[%emt 0:01:54][%cal Re5d4] D74: Fianchetto Grünfeld: Main Line (5 Nf3 0-0 6 cxd5 Nxd5 7 0-0).} 9. Nxd5 {[%emt 0:18:28]} e4 {[%emt 0:00:26] [#]} 10. Nd2 $1 {[%emt 0:08:13][%cal Od2e4]} Qxd5 {[%emt 0:00:22] The position is equal.} 11. e3 {[%emt 0:02:57]} (11. Nxe4 $5 {[%cal Re4f6]} Qxd4 12. Nc3 $11) 11... f5 {[%emt 0:23:29]} 12. b3 {[%emt 0:08:50]} Be6 {[%emt 0:08:10] [#]} 13. a4 $146 {[%emt 0:08:52]} ({Predecessor:} 13. Ba3 Rfd8 14. Rc1 Qd7 15. Qc2 Rac8 16. Rfd1 Ne7 17. Bxe7 Qxe7 18. Bf1 Kh8 19. Be2 {0-1 (91) Duda,J (2737)-Grischuk,A (2766) Chess.com INT 2018}) 13... Rad8 {[%emt 0:03:44]} 14. Ba3 {[%emt 0:06:56]} Rfe8 {[%emt 0:00:31]} 15. Nc4 {[%emt 0:09:08]} Qd7 {[%emt 0:11:36]} 16. Qc2 {[%emt 0:01:39]} Qf7 {[%emt 0:03:24]} 17. Rac1 {[%emt 0:01:09]} Bd5 {[%emt 0:07:45]} 18. Rfd1 {[%emt 0:06:02]} g5 {[%emt 0:04:25]} 19. Bf1 {[%emt 0:00:05]} f4 {[%emt 0:02:05]} 20. b4 $1 {[%emt 0:00:07][%cal Bb3b4,Bb4b5][%mdl 32] Against a5} Re6 {[%emt 0:10:06]} (20... Qe6 $11) 21. b5 $16 {[%emt 0:00:01]} Ne7 {[%emt 0:04:11]} 22. Ne5 {[%emt 0:00:11]} Bxe5 {[%emt 0:00:29]} 23. dxe5 {[%emt 0:00:03]} c6 {[%emt 0:00:23]} 24. bxc6 {[%emt 0:10:33]} bxc6 {[%emt 0:00:14]} 25. f3 {[%emt 0:09:11]} (25. Qe2 $5 {[%cal Rf1h3]}) 25... exf3 {[%emt 0:14:35]} 26. e4 {[%emt 0:00:14]} fxg3 {[%emt 0:00:12]} 27. Bxe7 {[%emt 0:02:00]} f2+ {[%emt 0:01:19]} (27... Qf4 $5 {[%cal Rf3f2]} 28. exd5 Rh6 $1 $11) 28. Kg2 $1 {[%emt 0:00:06]} gxh2 {[%emt 0:01:20] [#]} (28... Rxe7 $14 29. exd5 gxh2) 29. Kh1 $1 {[%emt 0:03:01]} Rxe7 $11 {[%emt 0:00:44] The board is on fire.} 30. exd5 {[%emt 0:00:24]} Rxd5 {[%emt 0:00:29]} 31. Rxd5 {[%emt 0:01:09]} cxd5 {[%emt 0:00:07]} 32. Qc8+ {[%emt 0:01:33]} Kg7 {[%emt 0:00:12]} 33. Qc3 {[%emt 0:00:13]} (33. Qg4 $1 $14) 33... Qf4 $1 {[%emt 0:00:23][%csl LRa4,LRe5] White must now prevent ...g4.} 34. Rd1 $2 {[%emt 0:00:41] [#]} ({White should play} 34. e6+ $11 d4 35. Qc5 Rxe6 36. Qc7+ Qxc7 37. Rxc7+ Kf6 38. Kxh2) 34... Qxe5 {[%emt 0:00:34]} (34... Qg4 $1 $17 {[%csl Gf2,Gh2][%cal Rg4g1]} 35. e6+ Kh6 36. Qh3+ Qxh3 37. Bxh3 g4 38. Bxg4 Rg7) 35. Qd2 $2 {[%emt 0:01:24][%mdl 8192] This costs White the game.} (35. Qxe5+ $15 Rxe5 36. Rd2) 35... Qg3 $19 {[%emt 0:00:49][%csl Gf2,Gh2][%cal Rg3g1]} 36. Qd4+ {[%emt 0:00:36]} Re5 {[%emt 0:01:04][%csl Gf2,Gh2][%cal Rg3g1]} ({Not} 36... Kh6 37. Qf6+ Kh5 38. Be2+ Rxe2 39. Qf7+ Kh4 40. Qxh7+ Kg4 41. Qd7+ Kf4 42. Qf7+ Ke3 43. Qe6+ Kf4 44. Qf7+ Kg4 45. Qd7+ Kh5 46. Qh7+ Kg4 47. Qd7+ $11) 37. Qxa7+ {[%emt 0:00:34]} Kh6 {[%emt 0:00:06][%csl Gf2,Gh2][%cal Rg3g1] Black mates.} 38. Qa6+ {[%emt 0:00:40]} Kh5 {[%emt 0:00:09][%csl Gf2,Gh2][%cal Rg3g1]} 39. Be2+ {[%emt 0:00:16]} g4 {[%emt 0:00:08]} 40. Bxg4+ {[%emt 0:00:53]} Qxg4 {[%emt 0:00:07] Weighted Error Value: White=0.66/Black=0.22 (precise)} 0-1

[Event "Teplice Open 2022"]
[Site "Teplice"]
[Date "2022.06.25"]
[Round "8.17"]
[White "Fridman, Daniel"]
[Black "Shohat, Yotam"]
[Result "1-0"]
[ECO "A43"]
[WhiteElo "2605"]
[BlackElo "2331"]
[Annotator "TA"]
[PlyCount "89"]
[EventDate "2022.06.18"]
[EventType "swiss"]
[EventCountry "CZE"]
[SourceTitle "playchess.com"]
[Source "ChessBase"]
[SourceQuality "1"]
[TimeControl "40/5400+30:1800+30"]

{[%evp 9,89,28,41,41,39,39,43,43,48,34,38,43,65,44,64,70,59,62,75,74,76,55,52,55,70,29,70,96,97,111,99,104,100,55,108,62,60,36,49,29,98,94,87,81,89,80,135,47,35,30,101,74,104,105,154,133,189,160,266,262,267,273,270,255,371,263,528,523,522,491,492,387,460,450,697,686,955,890,947,937,843,819]} 1. d4 {[%emt 0:17:49]} Nf6 {[%emt 0:00:07]} 2. Nf3 {[%emt 0:00:15]} c5 {[%emt 0:00:12]} 3. d5 {[%emt 0:00:10]} e6 {[%emt 0:00:37]} 4. Nc3 {[%emt 0:00:09]} d6 {[%emt 0:01:57]} 5. e4 {[%emt 0:00:07]} a6 {[%emt 0:01:03]} 6. a4 {[%emt 0:00:38] A43: Schmid Benoni.} exd5 {[%emt 0:01:29] The main line 6...exd5 scores better than 6...Be7.} 7. exd5 {[%emt 0:00:10]} Be7 {[%emt 0:00:12]} 8. h3 {[%emt 0:00:44] White is slightly better.} O-O {[%emt 0:00:20]} 9. Bd3 {[%emt 0:00:09]} Nbd7 {[%emt 0:02:40]} 10. O-O {[%emt 0:00:09]} Nb6 {[%emt 0:00:47]} 11. Be2 {[%emt 0:05:12] [#]} Bf5 $146 {[%emt 0:03:21]} ({Predecessor:} 11... Re8 12. a5 Nbd7 13. Nd2 b5 14. axb6 Nxb6 15. Nb3 h6 16. Na5 Qc7 17. Re1 Bf8 {0-1 (36) Razin,V (2288)-Rakhmangulov,A (2323) Ilichevsk 2008}) 12. a5 {[%emt 0:01:01]} Nc8 {[%emt 0:05:29]} 13. Re1 {[%emt 0:04:14]} Ne4 {[%emt 0:07:08]} 14. Nxe4 {[%emt 0:06:14]} Bxe4 {[%emt 0:00:02]} 15. Bd3 {[%emt 0:00:11]} Bxd3 {[%emt 0:12:51]} 16. Qxd3 {[%emt 0:00:14]} Bf6 {[%emt 0:00:14]} 17. g4 {[%emt 0:06:20][%cal Bg2g4,Bg4g5][%mdl 32]} b5 {[%emt 0:17:25]} 18. axb6 {[%emt 0:02:52]} Nxb6 {[%emt 0:00:03] [#]} 19. g5 $1 {[%emt 0:00:52]} Be7 {[%emt 0:00:07]} 20. Bd2 {[%emt 0:01:31]} Qd7 {[%emt 0:06:11]} 21. Ba5 {[%emt 0:01:50]} Rfb8 {[%emt 0:01:32]} (21... Nc8 $14) 22. Re4 {[%emt 0:01:45]} ({White should try} 22. b3 $16) 22... Bf8 $14 {[%emt 0:16:00]} 23. Rh4 {[%emt 0:05:02][%csl Gh4][%cal Rd3h7]} g6 $1 {[%emt 0:00:03]} 24. Bc3 {[%emt 0:00:07]} Qf5 {[%emt 0:00:55]} (24... Qb5 $11 {remains equal.}) 25. Qxf5 $16 {[%emt 0:00:58]} gxf5 {[%emt 0:00:02]} 26. Rd1 $40 {[%emt 0:00:08][%mdl 128] White has strong attack. White is much more active.} Re8 {[%emt 0:06:44]} 27. Rf4 {[%emt 0:02:13]} Rab8 {[%emt 0:00:13]} ({Black should play} 27... a5) 28. b3 {[%emt 0:04:38]} ({Resist} 28. Rxf5 Na4 $14) (28. Kf1 $16) 28... Re2 $14 {[%emt 0:01:57]} 29. Ne1 {[%emt 0:00:10]} Rbe8 {[%emt 0:00:49]} (29... c4 $11 {keeps the balance.}) 30. Kf1 {[%emt 0:00:33] Black is on the road to losing.} Bg7 {[%emt 0:11:02] [#]} 31. Ba5 {[%emt 0:02:55]} Nd7 {[%emt 0:01:13]} (31... Nc8 $142) 32. Rxf5 $16 {[%emt 0:00:16]} Bd4 {[%emt 0:00:49]} (32... c4 $16) 33. Bd2 {[%emt 0:01:11][%cal Od2e3]} c4 {[%emt 0:00:57]} (33... R2e4 $16 {was called for.} 34. Bf4 Be5) 34. Be3 $18 {[%emt 0:02:12]} (34. bxc4 $6 R2e5 35. Rf4 Bb6 $18) 34... R2xe3 {[%emt 0:00:47]} 35. fxe3 {[%emt 0:00:07]} Bxe3 {[%emt 0:00:04]} 36. b4 {[%emt 0:02:27]} ({Don't do} 36. bxc4 $6 Nb6 $16) 36... Kg7 {[%emt 0:02:25]} (36... Re4 $142 37. Ra1 Bd2) 37. Nf3 {[%emt 0:05:50]} Kg6 $2 {[%emt 0:00:35]} (37... Re4) 38. Nh4+ {[%emt 0:00:07]} Kh5 {[%emt 0:00:03]} 39. Rxf7 {[%emt 0:00:24]} Ne5 {[%emt 0:00:43]} 40. Rxh7+ {[%emt 0:00:07]} Kxg5 {[%emt 0:00:03]} 41. Kg2 {[%emt 0:31:16] And now Rf1 would win. White is clearly winning.} Bf4 {[%emt 0:05:30]} (41... Rf8 $142 42. Rf1 Rxf1 43. Kxf1 Bd4) 42. Rf1 {[%emt 0:00:00] Black must now prevent Rg7+.} Rf8 {[%emt 0:08:50]} 43. Kh1 {[%emt 0:00:00]} c3 {[%emt 0:00:45]} 44. Ng2 {[%emt 0:00:00]} Ng6 {[%emt 0:00:26]} 45. Rg7 {[%emt 0:00:00] Weighted Error Value: White=0.17 (very precise) /Black=0.36} 1-0

[Event "Teplice Open 2022"]
[Site "Teplice"]
[Date "2022.06.25"]
[Round "8.18"]
[White "Wagh Suyog"]
[Black "Azarov, Sergei"]
[Result "1/2-1/2"]
[ECO "E04"]
[WhiteElo "2352"]
[BlackElo "2588"]
[Annotator "TA"]
[PlyCount "82"]
[EventDate "2022.06.18"]
[EventType "swiss"]
[EventCountry "CZE"]
[SourceTitle "playchess.com"]
[Source "ChessBase"]
[SourceQuality "1"]
[TimeControl "40/5400+30:1800+30"]

{[%evp 14,82,23,21,8,3,10,11,6,4,7,8,12,12,35,34,30,31,31,33,40,30,35,16,7,6,10,22,11,0,1,0,0,-5,-5,-7,-7,-5,-6,-6,-7,-8,-7,-13,-8,-8,-8,-6,-6,-9,-6,-8,0,0,0,0,0,0,0,-6,0,-26,-26,-26,-2,-2,-2,-11,-2,-9,0]} 1. d4 {[%emt 0:02:43]} Nf6 {[%emt 0:00:10]} 2. c4 {[%emt 0:00:05]} e6 {[%emt 0:00:12]} 3. g3 {[%emt 0:01:35]} d5 {[%emt 0:00:29]} 4. Nf3 {[%emt 0:00:05]} dxc4 {[%emt 0:00:35]} 5. Bg2 {[%emt 0:00:12]} Bd7 {[%emt 0:00:29]} 6. Ne5 {[%emt 0:01:23]} Bc6 {[%emt 0:00:17]} 7. Nxc6 {[%emt 0:00:46]} Nxc6 {[%emt 0:00:07]} 8. O-O {[%emt 0:00:25]} Qd7 {[%emt 0:01:06] E04: Open Catalan: 5 Nf3.} 9. e3 {[%emt 0:03:54]} Rd8 {[%emt 0:00:30] 9...Nd5 is a critical line.} 10. Qa4 {[%emt 0:05:00]} Nb4 {[%emt 0:33:39]} 11. Qxd7+ {[%emt 0:08:19]} Nxd7 {[%emt 0:03:59]} 12. Na3 {[%emt 0:05:49] Prevents Nc2.} Nb6 {[%emt 0:02:07]} 13. Bxb7 {[%emt 0:31:52][%cal Bg2b7,Bb7a6,Ba6c4][%mdl 32]} c6 {[%emt 0:05:26] [#] ...Rb8 is the strong threat.} 14. Bd2 {[%emt 0:00:58]} Kd7 {[%emt 0:00:23] Hoping for ...a5.} 15. Bxb4 {[%emt 0:09:24]} Bxb4 {[%emt 0:01:04]} 16. Nc2 {[%emt 0:00:37]} Bd6 {[%emt 0:01:05]} 17. Ba6 {[%emt 0:01:02]} Rb8 {[%emt 0:05:39] [#]} 18. Rab1 $146 {[%emt 0:08:28]} ({Predecessor:} 18. b3 c3 19. e4 f5 20. exf5 exf5 21. Ne3 Ba3 22. Nxf5 Nd5 23. Ne3 Nxe3 24. fxe3 {0-1 (31) Truskavetsky,A (2393)-Grachev,B (2626) Sochi 2018}) 18... Na4 {[%emt 0:05:13]} 19. Bxc4 {[%emt 0:00:22]} Rxb2 {[%emt 0:00:18]} 20. Rxb2 {[%emt 0:08:39]} Nxb2 {[%emt 0:02:18]} 21. Be2 {[%emt 0:02:39]} Rb8 {[%emt 0:02:28]} 22. Rb1 {[%emt 0:00:16]} Rb6 {[%emt 0:00:12]} 23. Na1 {[%emt 0:01:30]} Na4 {[%emt 0:01:21]} 24. Rb3 {[%emt 0:00:42]} Rxb3 {[%emt 0:07:30]} 25. axb3 $11 {[%emt 0:00:12][%mdl 4096] Endgame KBN-KBN} Nc3 {[%emt 0:00:14]} 26. Bc4 {[%emt 0:01:00]} c5 {[%emt 0:03:07]} 27. dxc5 {[%emt 0:01:41]} Bxc5 {[%emt 0:00:06]} 28. Kf1 {[%emt 0:00:14]} g5 {[%emt 0:03:18]} 29. g4 {[%emt 0:01:07]} a5 {[%emt 0:04:18]} 30. Nc2 {[%emt 0:00:50]} h6 {[%emt 0:01:04]} 31. Ne1 {[%emt 0:01:28]} Ne4 {[%emt 0:03:52]} 32. Ke2 {[%emt 0:01:22] Inhibits Nd2.} f5 {[%emt 0:01:09]} 33. h3 {[%emt 0:01:09]} Nf6 {[%emt 0:00:57]} 34. Nd3 {[%emt 0:00:30]} Bd6 {[%emt 0:00:19]} 35. f3 {[%emt 0:00:37]} Ke7 {[%emt 0:01:58]} 36. Ba6 {[%emt 0:00:31]} Nd5 {[%emt 0:04:13]} 37. e4 {[%emt 0:00:30]} fxe4 {[%emt 0:01:51]} 38. fxe4 {[%emt 0:00:05]} Nc3+ {[%emt 0:03:13]} 39. Kf3 {[%emt 0:00:12] The position is equal.} Kf6 {[%emt 0:00:32]} 40. Bc4 {[%emt 0:01:33]} Nb1 {[%emt 0:00:58][%cal Oa5a4]} 41. Ke2 {[%emt 0:30:34]} Nc3+ {[%emt 0:03:36] Weighted Error Value: White=0.02 (flawless) /Black=0.02 (flawless)} 1/2-1/2

[Event "Teplice Open 2022"]
[Site "Teplice"]
[Date "2022.06.25"]
[Round "8.19"]
[White "Budisavljevic, Luka"]
[Black "Dixit, Nikhil"]
[Result "1-0"]
[ECO "E94"]
[WhiteElo "2507"]
[BlackElo "2331"]
[Annotator "RC"]
[PlyCount "79"]
[EventDate "2022.06.18"]
[EventType "swiss"]
[EventCountry "CZE"]
[SourceTitle "playchess.com"]
[Source "ChessBase"]
[SourceQuality "1"]
[TimeControl "40/5400+30:1800+30"]

1. d4 {[%emt 0:10:44]} Nf6 {[%emt 0:00:22]} 2. c4 {[%emt 0:00:02]} g6 {[%emt 0:00:05]} 3. Nc3 {[%emt 0:00:04]} Bg7 {[%emt 0:00:05]} 4. e4 {[%emt 0:00:03]} d6 {[%emt 0:00:04]} 5. Be2 {[%emt 0:00:06]} O-O {[%emt 0:00:45]} 6. Nf3 {[%emt 0:00:04]} e5 {[%emt 0:00:40]} 7. O-O {[%emt 0:00:57]} exd4 {[%emt 0:00:55]} 8. Nxd4 {[%emt 0:00:09]} Re8 {[%emt 0:00:16]} 9. f3 {[%emt 0:00:26]} Nc6 {[%emt 0:00:05]} 10. Be3 {[%emt 0:00:24]} Nh5 {[%emt 0:00:27]} 11. Nc2 {[%emt 0:00:18]} a5 {[%emt 0:03:58]} 12. Qd2 {[%emt 0:04:05]} Bd7 {[%emt 0:09:08]} 13. Nd5 {[%emt 0:01:56]} Ne7 {[%emt 0:17:51]} 14. Nc3 {[%emt 0:07:51]} f5 {[%emt 0:16:03]} 15. Bg5 {[%emt 0:01:37]} Bf6 {[%emt 0:04:46]} 16. f4 {[%emt 0:04:17]} Bxg5 {[%emt 0:05:00]} 17. fxg5 {[%emt 0:00:02]} Ng7 {[%emt 0:00:40]} 18. exf5 {[%emt 0:03:00]} Bxf5 {[%emt 0:01:07]} 19. Ne3 {[%emt 0:01:43]} c6 {[%emt 0:04:15]} 20. g4 {[%emt 0:00:46]} Qb6 {[%emt 0:01:42]} 21. Kh1 {[%emt 0:08:26]} Be6 {[%emt 0:05:44]} 22. Ne4 {[%emt 0:00:15]} Rf8 {[%emt 0:00:41]} 23. Nf6+ {[%emt 0:08:10]} Kh8 {[%emt 0:01:47]} 24. h4 {[%emt 0:00:45]} Qc5 {[%emt 0:01:43]} 25. Ng2 {[%emt 0:01:57]} d5 {[%emt 0:03:29]} 26. h5 {[%emt 0:02:57]} gxh5 {[%emt 0:11:14]} 27. gxh5 {[%emt 0:00:20]} Ngf5 {[%emt 0:00:38]} 28. Qc3 {[%emt 0:03:01]} d4 {[%emt 0:00:42]} 29. Qh3 {[%emt 0:01:57]} Qe5 {[%emt 0:01:13]} 30. Nf4 {[%emt 0:00:52]} h6 {[%emt 0:04:37]} 31. Bg4 {[%emt 0:20:07]} Bxc4 {[%emt 0:04:02]} 32. Bxf5 {[%emt 0:06:19]} Bxf1 {[%emt 0:00:36]} 33. Rxf1 {[%emt 0:00:05]} Qe3 {[%emt 0:01:40]} 34. Rf3 {[%emt 0:04:54]} Qe1+ {[%emt 0:00:21]} 35. Kg2 {[%emt 0:00:04]} hxg5 {[%emt 0:00:43]} 36. Ng6+ {[%emt 0:00:06]} Kg7 {[%emt 0:00:27]} 37. h6+ {[%emt 0:02:08]} Kf7 {[%emt 0:00:30]} 38. Nxf8 {[%emt 0:03:15]} Rxf8 {[%emt 0:00:31]} 39. Be6+ {[%emt 0:00:37]} Qxe6 {[%emt 0:00:21]} 40. Nh7+ {[%emt 0:00:08]} 1-0

[Event "Teplice Open 2022"]
[Site "Teplice"]
[Date "2022.06.25"]
[Round "8.20"]
[White "Mikes, Jan"]
[Black "Ferreira, Jorge Viterbo"]
[Result "0-1"]
[ECO "D00"]
[WhiteElo "2349"]
[BlackElo "2512"]
[Annotator "TA"]
[PlyCount "72"]
[EventDate "2022.06.18"]
[EventType "swiss"]
[EventCountry "CZE"]
[SourceTitle "playchess.com"]
[Source "ChessBase"]
[SourceQuality "1"]
[TimeControl "40/5400+30:1800+30"]

{[%evp 9,72,-25,-29,-25,-24,-56,-33,-40,-22,-37,-32,-25,-28,-25,-33,-51,0,-47,-47,-47,-47,-53,-53,-62,-55,-68,-54,-53,-44,-50,-46,-95,-92,-108,-103,-174,-189,-224,-181,-185,-132,-181,-126,-126,-127,-217,-204,-214,-175,-238,-209,-303,-272,-313,-254,-252,-257,-436,-427,-435,-417,-410,-413,-372,-256]} 1. d4 {[%emt 0:00:05]} d5 {[%emt 0:00:26]} 2. Nc3 {[%emt 0:00:30]} Nf6 {[%emt 0:00:46]} 3. Bf4 {[%emt 0:00:33]} e6 {[%emt 0:01:12]} 4. Nb5 {[%emt 0:04:03]} Na6 {[%emt 0:00:40]} 5. Nf3 {[%emt 0:00:52]} c6 {[%emt 0:05:26]} 6. Nc3 {[%emt 0:00:17] D00: 1 d4 d5: Unusual lines.} Bb4 {[%emt 0:00:14]} 7. a3 {[%emt 0:06:05]} Bxc3+ {[%emt 0:07:49]} 8. bxc3 {[%emt 0:00:04] Black is slightly better.} Ne4 {[%emt 0:00:17] [#]} 9. Qd3 $146 {[%emt 0:03:23]} ({Predecessor:} 9. Bd2 c5 10. Qb1 Qa5 11. e3 c4 12. Qb2 Bd7 13. Ne5 Nd6 14. Nxd7 Kxd7 15. f3 {0-1 (24) Horvath,T (1877)-Csidey,C (1607) Hungary 2019}) 9... Qa5 {[%emt 0:01:50]} 10. Nd2 {[%emt 0:07:42]} Qxc3 {[%emt 0:08:36]} 11. Qxc3 {[%emt 0:00:05]} Nxc3 {[%emt 0:00:11]} 12. f3 {[%emt 0:01:28]} Bd7 {[%emt 0:12:07]} (12... c5 $15) 13. Nb3 {[%emt 0:02:11]} (13. e4 $11) 13... c5 $15 {[%emt 0:06:08]} 14. dxc5 {[%emt 0:11:06]} f6 {[%emt 0:05:13]} 15. Bd6 {[%emt 0:09:30]} Nb5 {[%emt 0:08:22]} 16. e4 {[%emt 0:07:31]} Nxd6 {[%emt 0:00:50]} 17. cxd6 {[%emt 0:05:02]} dxe4 {[%emt 0:01:39]} 18. fxe4 {[%emt 0:05:31]} Rc8 {[%emt 0:00:50]} 19. Bxa6 {[%emt 0:00:30]} bxa6 {[%emt 0:00:09]} 20. O-O-O {[%emt 0:00:20]} (20. O-O $15) 20... e5 $17 {[%emt 0:03:57]} 21. Na5 {[%emt 0:09:55]} Be6 {[%emt 0:04:51] Prevents c4.} (21... Ba4 {with more complications.} 22. Rd2 Kd7 23. c4 Bb5) 22. d7+ {[%emt 0:01:20]} (22. Rhe1 $17) 22... Bxd7 $19 {[%emt 0:03:06]} 23. Rd6 {[%emt 0:00:18]} Bb5 {[%emt 0:02:02]} 24. Rhd1 {[%emt 0:02:43]} O-O {[%emt 0:00:34]} ({Better is} 24... Kf7 $19 25. Nb7 Kg6) 25. R1d2 {[%emt 0:02:30]} (25. Kb2 $17 {might work better.}) 25... Rc7 {[%emt 0:02:20]} (25... h6 $19 26. g4 Rf7) 26. Kb2 $17 {[%emt 0:00:38]} Rfc8 {[%emt 0:01:10]} 27. a4 {[%emt 0:03:16]} (27. Rd8+ $17 Kf7 28. Rxc8 Rxc8 29. Rd5) 27... Bxa4 $19 {[%emt 0:03:38]} 28. c4 {[%emt 0:00:20]} Be8 {[%emt 0:02:12]} 29. g4 {[%emt 0:06:14]} (29. Rd8 $142) 29... Kf8 {[%emt 0:01:22]} 30. h4 {[%emt 0:00:39]} (30. g5 $142) 30... Ke7 {[%emt 0:02:27]} 31. g5 {[%emt 0:01:36]} Bg6 {[%emt 0:02:37]} 32. gxf6+ {[%emt 0:00:53]} gxf6 {[%emt 0:00:06] Hoping for ...Rb8+.} 33. Rxa6 $2 {[%emt 0:00:09] [#]} (33. Kc3) 33... Rb8+ {[%emt 0:00:58]} 34. Kc3 {[%emt 0:02:28]} Rb6 {[%emt 0:00:08] Inhibits Nc6+.} 35. Rxb6 {[%emt 0:00:05]} axb6 {[%emt 0:00:05]} 36. Nb3 {[%emt 0:00:05]} Bf7 {[%emt 0:00:20] Weighted Error Value: White=0.31/Black=0.14 (very precise)} 0-1